fUSD/lending_fUSD_20250223
["ID","MTS","AMOUNT","RATE_DAILY","PERIOD"]
[354224268,1740353440056,-150.0,0.00016126,2]
[354224269,1740353440066,-150.0,0.00016132,2]
[354224271,1740353440075,-150.0,0.00016139,2]
[354224274,1740353440084,-150.0,0.00016141,2]
[354224275,1740353440093,-2566.7074404,0.00016143,2]
[354224278,1740353440103,-150.0,0.00016149,2]
[354224279,1740353440112,-150.0,0.00016149,2]
[354224282,1740353440122,-150.0,0.00016151,2]
[354224284,1740353440131,-150.0,0.00016164,2]
[354224286,1740353440139,-150.0,0.00016195,2]
[354224288,1740353440149,-150.0,0.00016231,2]
[354224290,1740353440158,-2566.7074404,0.00016265,2]
[354224291,1740353440168,-150.0,0.00016265,2]
[354224293,1740353440179,-1000.0,0.00016269,2]
[354224295,1740353440188,-150.0,0.00016297,2]
[354224296,1740353440198,-150.0,0.0001631,2]
[354224298,1740353440207,-150.0,0.00016317,2]
[354224300,1740353440217,-150.0,0.00016334,2]
[354224302,1740353440226,-7500.0,0.00016338,2]
[354224303,1740353440235,-300.0,0.0001635,2]
[354224305,1740353440244,-867.96,0.00016364,2]
[354224307,1740353440254,-150.0,0.00016365,2]
[354224309,1740353440264,-2566.7074404,0.00016387,2]
[354224310,1740353440273,-150.0,0.00016389,2]
[354224312,1740353440282,-1000.0,0.00016397,2]
[354224314,1740353440291,-1160.69279625,0.000164,2]
[354224316,1740353440303,-288.291,0.000164,2]
[354224318,1740353440314,-342.32093239,0.000164,2]
[354224319,1740353440325,-1124.92124136,0.000164,2]
[354224321,1740353440334,-150.0,0.00016401,2]
[354224323,1740353440343,-6427.9036571,0.00016402,2]
[354224325,1740353440354,-2972.82485951,0.00016402,2]
[354224327,1740353440365,-1898.39,0.00016402,2]
[354224331,1740353440409,-4715.83704533,0.00016402,2]
[354224333,1740353440418,-150.0,0.00016407,2]
[354224335,1740353440427,-280.44984299,0.0001642,2]
[354224337,1740353440436,-190.19867322,0.0001642,2]
[354224338,1740353440445,-432.55648003,0.00016421,2]
[354224340,1740353440454,-150.0,0.00016436,2]
[354224342,1740353440464,-500.0,0.00016438,2]
[354224344,1740353440473,-500.0,0.00016438,2]
[354224346,1740353440482,-569.80514829,0.00016438,2]
[354224347,1740353440490,-500.0,0.00016438,2]
[354224349,1740353440499,-500.0,0.00016438,2]
[354224351,1740353440509,-500.0,0.00016438,2]
[354224353,1740353440518,-500.0,0.00016438,2]
[354224355,1740353440527,-531.60269616,0.00016438,2]
[354224356,1740353440536,-500.0,0.00016438,2]
[354224358,1740353440547,-500.0,0.00016438,2]
[354224360,1740353440556,-822.09,0.00016438,2]
[354224361,1740353440565,-500.0,0.00016438,2]
[354224363,1740353440574,-500.0,0.00016438,2]
[354224365,1740353440583,-500.0,0.00016438,2]
[354224367,1740353440592,-500.0,0.00016438,2]
[354224368,1740353440601,-500.0,0.00016438,2]
[354224370,1740353440610,-740.11,0.00016438,2]
[354224372,1740353440619,-500.0,0.00016438,2]
[354224374,1740353440628,-500.0,0.00016438,2]
[354224376,1740353440637,-950.11,0.00016438,2]
[354224378,1740353440647,-500.0,0.00016438,2]
[354224379,1740353440657,-500.0,0.00016438,2]
[354224381,1740353440666,-500.0,0.00016438,2]
[354224383,1740353440675,-500.0,0.00016438,2]
[354224385,1740353440685,-500.0,0.00016438,2]
[354224387,1740353440693,-500.0,0.00016438,2]
[354224389,1740353440703,-755.07,0.00016438,2]
[354224390,1740353440712,-500.0,0.00016438,2]
[354224392,1740353440721,-544.66,0.00016438,2]
[354224394,1740353440730,-500.0,0.00016438,2]
[354224396,1740353440738,-500.0,0.00016438,2]
[354224397,1740353440747,-500.0,0.00016438,2]
[354224399,1740353440757,-500.0,0.00016438,2]
[354224401,1740353440767,-500.0,0.00016438,2]
[354224403,1740353440776,-500.0,0.00016438,2]
[354224405,1740353440785,-500.0,0.00016438,2]
[354224407,1740353440795,-944.75,0.00016438,2]
[354224409,1740353440804,-500.0,0.00016438,2]
[354224411,1740353440814,-500.0,0.00016438,2]
[354224413,1740353440823,-500.0,0.00016438,2]
[354224415,1740353440832,-500.0,0.00016438,2]
[354224417,1740353440845,-500.0,0.00016438,2]
[354224419,1740353440855,-223.8994317,0.00016438,2]
[354224422,1740353440879,-276.1005683,0.00016438,2]
[354224424,1740353440888,-500.0,0.00016438,2]
[354224425,1740353440897,-500.0,0.00016438,2]
[354224427,1740353440907,-500.0,0.00016438,2]
[354224429,1740353440917,-626.53,0.00016438,2]
[354224431,1740353440926,-684.82,0.00016438,2]
[354224433,1740353440935,-500.0,0.00016438,2]
[354224434,1740353440944,-500.0,0.00016438,2]
[354224436,1740353440953,-179.01671214,0.00016438,2]
[354224438,1740353440962,-500.0,0.00016438,2]
[354224440,1740353440976,-500.0,0.00016438,2]
[354224442,1740353440986,-435.94819369,0.00016438,2]
[354224444,1740353440995,-500.0,0.00016438,2]
[354224446,1740353441004,-500.0,0.00016438,2]
[354224447,1740353441015,-500.0,0.00016438,2]
[354224449,1740353441024,-353.23841507,0.00016438,2]
[354224451,1740353441033,-500.0,0.00016438,2]
[354224453,1740353441042,-500.0,0.00016438,2]
[354224455,1740353441051,-817.57,0.00016438,2]
[354224457,1740353441062,-500.0,0.00016438,2]
[354224458,1740353441072,-500.0,0.00016438,2]
[354224460,1740353441081,-542.30697742,0.00016438,2]
[354224462,1740353441094,-43.21302258,0.00016438,2]
[354224464,1740353441103,-511.2,0.00016438,2]
[354224466,1740353441112,-806.31,0.00016438,2]
[354224468,1740353441121,-500.0,0.00016438,2]
[354224470,1740353441130,-500.0,0.00016438,2]
[354224472,1740353441139,-311.06066622,0.00016438,2]
[354224473,1740353441148,-500.0,0.00016438,2]
[354224475,1740353441158,-554.64,0.00016438,2]
[354224477,1740353441167,-500.0,0.00016438,2]
[354224479,1740353441176,-500.0,0.00016438,2]
[354224481,1740353441185,-640.95,0.00016438,2]
[354224483,1740353441194,-500.0,0.00016438,2]
[354224485,1740353441203,-500.0,0.00016438,2]
[354224487,1740353441212,-500.0,0.00016438,2]
[354224489,1740353441221,-500.0,0.00016438,2]
[354224491,1740353441230,-730.72,0.00016438,2]
[354224493,1740353441239,-500.0,0.00016438,2]
[354224495,1740353441248,-500.0,0.00016438,2]
[354224497,1740353441257,-500.0,0.00016438,2]
[354224498,1740353441267,-500.0,0.00016438,2]
[354224499,1740353441275,-516.69,0.00016438,2]
[354224500,1740353441284,-500.0,0.00016438,2]
[354224501,1740353441293,-500.0,0.00016438,2]
[354224502,1740353441302,-500.0,0.00016438,2]
[354224503,1740353441311,-508.37043006,0.00016438,2]
[354224504,1740353441320,-500.0,0.00016438,2]
[354224505,1740353441328,-500.0,0.00016438,2]
[354224506,1740353441338,-500.0,0.00016438,2]
[354224507,1740353441347,-500.0,0.00016438,2]
[354224508,1740353441355,-500.0,0.00016438,2]
[354224509,1740353441364,-500.0,0.00016438,2]
[354224510,1740353441373,-500.0,0.00016438,2]
[354224511,1740353441383,-500.0,0.00016438,2]
[354224513,1740353441392,-500.0,0.00016438,2]
[354224515,1740353441402,-500.0,0.00016438,2]
[354224517,1740353441411,-500.0,0.00016438,2]
[354224519,1740353441420,-500.0,0.00016438,2]
[354224521,1740353441429,-500.0,0.00016438,2]
[354224523,1740353441439,-500.0,0.00016438,2]
[354224524,1740353441449,-500.0,0.00016438,2]
[354224527,1740353441459,-520.84,0.00016438,2]
[354224529,1740353441469,-500.60435142,0.00016438,2]
[354224531,1740353441479,-500.0,0.00016438,2]
[354224533,1740353441488,-500.0,0.00016438,2]
[354224535,1740353441497,-500.0,0.00016438,2]
[354224537,1740353441506,-500.0,0.00016438,2]
[354224539,1740353441518,-500.0,0.00016438,2]
[354224541,1740353441527,-500.0,0.00016438,2]
[354224543,1740353441536,-500.0,0.00016438,2]
[354224545,1740353441545,-500.0,0.00016438,2]
[354224547,1740353441554,-500.0,0.00016438,2]
[354224548,1740353441563,-500.0,0.00016438,2]
[354224550,1740353441572,-500.0,0.00016438,2]
[354224552,1740353441581,-552.39,0.00016438,2]
[354224554,1740353441591,-500.0,0.00016438,2]
[354224557,1740353441600,-500.0,0.00016438,2]
[354224559,1740353441609,-528.39,0.00016438,2]
[354224560,1740353441618,-166.12152972,0.00016438,2]
[354224692,1740353442665,-334.80042502,0.00016438,2]
[354224694,1740353442674,-13.5709139,0.00016438,2]
[354224698,1740353442701,-486.4290861,0.00016438,2]
[354224700,1740353442711,-477.5049339,0.00016438,2]
[354224705,1740353442751,-22.4950661,0.00016438,2]
[354224707,1740353442760,-860.18,0.00016438,2]
[354224709,1740353442769,-500.0,0.00016438,2]
[354224711,1740353442779,-500.0,0.00016438,2]
[354224712,1740353442789,-500.0,0.00016438,2]
[354224714,1740353442799,-500.0,0.00016438,2]
[354224716,1740353442808,-500.0,0.00016438,2]
[354224717,1740353442818,-764.47,0.00016438,2]
[354224718,1740353442827,-500.0,0.00016438,2]
[354224719,1740353442836,-500.0,0.00016438,2]
[354224720,1740353442845,-500.0,0.00016438,2]
[354224721,1740353442855,-500.0,0.00016438,2]
[354224722,1740353442864,-279.95829014,0.00016438,2]
[354224723,1740353442873,-500.0,0.00016438,2]
[354224724,1740353442882,-500.0,0.00016438,2]
[354224725,1740353442892,-500.0,0.00016438,2]
[354224726,1740353442901,-500.0,0.00016438,2]
[354224727,1740353442910,-500.0,0.00016438,2]
[354224728,1740353442920,-500.0,0.00016438,2]
[354224729,1740353442930,-500.0,0.00016438,2]
[354224730,1740353442939,-500.0,0.00016438,2]
[354224731,1740353442948,-501.15305456,0.00016438,2]
[354224732,1740353442957,-1111.83,0.00016438,2]
[354224733,1740353442969,-500.0,0.00016438,2]
[354224734,1740353442980,-500.0,0.00016438,2]
[354224735,1740353442989,-500.0,0.00016438,2]
[354224736,1740353442998,-500.0,0.00016438,2]
[354224737,1740353443007,-500.0,0.00016438,2]
[354224738,1740353443018,-500.0,0.00016438,2]
[354224740,1740353443027,-871.11,0.00016438,2]
[354224742,1740353443036,-500.0,0.00016438,2]
[354224744,1740353443046,-500.0,0.00016438,2]
[354224746,1740353443055,-329.41,0.00016438,2]
[354224748,1740353443064,-500.0,0.00016438,2]
[354224750,1740353443072,-500.0,0.00016438,2]
[354224752,1740353443082,-500.0,0.00016438,2]
[354224754,1740353443091,-500.0,0.00016438,2]
[354224756,1740353443100,-500.0,0.00016438,2]
[354224758,1740353443109,-653.59,0.00016438,2]
[354224760,1740353443118,-500.0,0.00016438,2]
[354224762,1740353443127,-500.0,0.00016438,2]
[354224764,1740353443136,-1545.06,0.00016438,2]
[354224767,1740353443145,-500.0,0.00016438,2]
[354224769,1740353443154,-500.0,0.00016438,2]
[354224771,1740353443163,-500.0,0.00016438,2]
[354224773,1740353443172,-369.76729884,0.00016438,2]
[354224775,1740353443183,-500.0,0.00016438,2]
[354224777,1740353443192,-500.0,0.00016438,2]
[354224779,1740353443201,-1353.57,0.00016438,2]
[354224781,1740353443209,-428.80384126,0.00016438,2]
[354224783,1740353443218,-512.45284315,0.00016438,2]
[354224785,1740353443227,-500.0,0.00016438,2]
[354224787,1740353443236,-500.0,0.00016438,2]
[354224789,1740353443245,-500.0,0.00016438,2]
[354224791,1740353443255,-500.0,0.00016438,2]
[354224792,1740353443263,-500.0,0.00016438,2]
[354224794,1740353443273,-523.27,0.00016438,2]
[354224797,1740353443284,-500.0,0.00016438,2]
[354224799,1740353443292,-500.0,0.00016438,2]
[354224801,1740353443301,-500.0,0.00016438,2]
[354224802,1740353443310,-500.0,0.00016438,2]
[354224804,1740353443320,-500.0,0.00016438,2]
[354224806,1740353443329,-500.0,0.00016438,2]
[354224808,1740353443338,-212.15229717,0.00016438,2]
[354224810,1740353443347,-500.0,0.00016438,2]
[354224812,1740353443356,-1352.93,0.00016438,2]
[354224814,1740353443365,-500.0,0.00016438,2]
[354224816,1740353443374,-500.0,0.00016438,2]
[354224818,1740353443384,-500.0,0.00016438,2]
[354224820,1740353443393,-1011.08,0.00016438,2]
[354224822,1740353443402,-518.05047692,0.00016438,2]
[354224824,1740353443411,-1000.26,0.00016438,2]
[354224826,1740353443420,-1500.09,0.00016438,2]
[354224828,1740353443430,-500.0,0.00016438,2]
[354224830,1740353443439,-500.0,0.00016438,2]
[354224832,1740353443449,-708.96,0.00016438,2]
[354224834,1740353443459,-500.0,0.00016438,2]
[354224836,1740353443468,-575.78,0.00016438,2]
[354224838,1740353443477,-1015.35,0.00016438,2]
[354224840,1740353443487,-991.38,0.00016438,2]
[354224842,1740353443496,-1549.18,0.00016438,2]
[354224844,1740353443505,-500.0,0.00016438,2]
[354224846,1740353443514,-529.22,0.00016438,2]
[354224848,1740353443523,-382.20776524,0.00016438,2]
[354224869,1740353443700,-500.0,0.00016438,2]
[354224871,1740353443715,-829.1,0.00016438,2]
[354224873,1740353443724,-500.0,0.00016438,2]
[354224875,1740353443733,-500.0,0.00016438,2]
[354224877,1740353443742,-859.55,0.00016438,2]
[354224879,1740353443751,-1497.27,0.00016438,2]
[354224881,1740353443760,-500.0,0.00016438,2]
[354224883,1740353443769,-500.0,0.00016438,2]
[354224885,1740353443778,-500.0,0.00016438,2]
[354224887,1740353443787,-500.0,0.00016438,2]
[354224889,1740353443796,-500.0,0.00016438,2]
[354224891,1740353443805,-500.0,0.00016438,2]
[354224893,1740353443814,-500.0,0.00016438,2]
[354224895,1740353443824,-1436.02,0.00016438,2]
[354224897,1740353443833,-500.0,0.00016438,2]
[354224899,1740353443842,-721.44,0.00016438,2]
[354224901,1740353443851,-769.04,0.00016438,2]
[354224903,1740353443860,-500.0,0.00016438,2]
[354224905,1740353443869,-500.0,0.00016438,2]
[354224907,1740353443878,-500.0,0.00016438,2]
[354224909,1740353443888,-500.0,0.00016438,2]
[354224911,1740353443897,-841.61,0.00016438,2]
[354224913,1740353443907,-500.0,0.00016438,2]
[354224915,1740353443916,-1264.07,0.00016438,2]
[354224917,1740353443925,-599.2,0.00016438,2]
[354224919,1740353443935,-500.0,0.00016438,2]
[354224921,1740353443944,-1067.3,0.00016438,2]
[354224923,1740353443953,-500.0,0.00016438,2]
[354224925,1740353443963,-500.0,0.00016438,2]
[354224926,1740353443974,-500.0,0.00016438,2]
[354224927,1740353443984,-800.15,0.00016438,2]
[354224928,1740353443994,-500.0,0.00016438,2]
[354224929,1740353444003,-500.0,0.00016438,2]
[354224930,1740353444014,-1000.0,0.00016438,2]
[354224931,1740353444023,-500.0,0.00016438,2]
[354224932,1740353444033,-500.0,0.00016438,2]
[354224933,1740353444043,-500.0,0.00016438,2]
[354224934,1740353444052,-793.84,0.00016438,2]
[354224936,1740353444062,-500.0,0.00016438,2]
[354224938,1740353444071,-500.0,0.00016438,2]
[354224940,1740353444081,-500.0,0.00016438,2]
[354224942,1740353444090,-500.0,0.00016438,2]
[354224944,1740353444099,-500.0,0.00016438,2]
[354224946,1740353444108,-500.0,0.00016438,2]
[354224948,1740353444117,-500.0,0.00016438,2]
[354224950,1740353444127,-500.0,0.00016438,2]
[354224952,1740353444138,-500.0,0.00016438,2]
[354224954,1740353444147,-500.0,0.00016438,2]
[354224956,1740353444156,-554.26,0.00016438,2]
[354224958,1740353444166,-500.0,0.00016438,2]
[354224960,1740353444175,-878.11,0.00016438,2]
[354224962,1740353444184,-1660.82,0.00016438,2]
[354224964,1740353444194,-500.0,0.00016438,2]
[354224966,1740353444203,-511.06615317,0.00016438,2]
[354224968,1740353444212,-1323.9,0.00016438,2]
[354224970,1740353444222,-500.0,0.00016438,2]
[354224972,1740353444231,-591.7,0.00016438,2]
[354224974,1740353444240,-500.0,0.00016438,2]
[354224977,1740353444249,-500.0,0.00016438,2]
[354224979,1740353444259,-1304.43,0.00016438,2]
[354224981,1740353444268,-500.0,0.00016438,2]
[354224983,1740353444277,-500.0,0.00016438,30]
[354224985,1740353444286,-500.0,0.00016438,2]
[354224986,1740353444296,-655.13,0.00016438,2]
[354224988,1740353444305,-613.34,0.00016438,2]
[354224990,1740353444315,-819.66,0.00016438,2]
[354224992,1740353444324,-500.0,0.00016438,2]
[354224995,1740353444333,-500.0,0.00016438,2]
[354224997,1740353444342,-500.0,0.00016438,2]
[354224999,1740353444352,-1327.72,0.00016438,2]
[354225000,1740353444361,-500.0,0.00016438,2]
[354225002,1740353444371,-500.0,0.00016438,2]
[354225004,1740353444380,-410.77714232,0.00016438,2]
[354225006,1740353444389,-601.57,0.00016438,2]
[354225008,1740353444400,-500.0,0.00016438,2]
[354225011,1740353444410,-500.0,0.00016438,2]
[354225013,1740353444419,-842.39,0.00016438,2]
[354225015,1740353444429,-500.0,0.00016438,2]
[354225017,1740353444438,-500.0,0.00016438,2]
[354225018,1740353444447,-501.16319771,0.00016438,2]
[354225020,1740353444456,-925.77,0.00016438,2]
[354225022,1740353444465,-500.0,0.00016438,2]
[354225024,1740353444475,-475.76955501,0.00016438,2]
[354225026,1740353444484,-1006.85,0.00016438,2]
[354225029,1740353444494,-501.96953405,0.00016438,2]
[354225031,1740353444503,-1618.37,0.00016438,2]
[354225033,1740353444512,-744.24,0.00016438,2]
[354225035,1740353444522,-912.53,0.00016438,2]
[354225037,1740353444531,-500.0,0.00016438,2]
[354225039,1740353444540,-946.08,0.00016438,2]
[354225040,1740353444550,-249.017467,0.00016438,2]
[354225042,1740353444559,-500.0,0.00016438,2]
[354225045,1740353444569,-500.0,0.00016438,2]
[354225047,1740353444578,-1675.32,0.00016438,2]
[354225048,1740353444588,-1433.69,0.00016438,2]
[354225051,1740353444598,-700.81,0.00016438,2]
[354225053,1740353444607,-753.58,0.00016438,2]
[354225054,1740353444617,-1458.26,0.00016438,2]
[354225057,1740353444627,-500.0,0.00016438,2]
[354225059,1740353444637,-707.82,0.00016438,2]
[354225061,1740353444646,-504.93858232,0.00016438,2]
[354225063,1740353444655,-1177.05,0.00016438,2]
[354225065,1740353444664,-1614.73,0.00016438,2]
[354225067,1740353444673,-751.63,0.00016438,2]
[354225069,1740353444683,-347.2944,0.00016438,2]
[354225071,1740353444692,-500.0,0.00016438,2]
[354225073,1740353444701,-500.0,0.00016438,2]
[354225075,1740353444711,-500.0,0.00016438,2]
[354225077,1740353444721,-500.0,0.00016438,2]
[354225079,1740353444730,-500.0,0.00016438,2]
[354225081,1740353444740,-500.0,0.00016438,2]
[354225083,1740353444750,-647.68,0.00016438,2]
[354225085,1740353444759,-500.0,0.00016438,2]
[354225087,1740353444771,-500.0,0.00016438,2]
[354225089,1740353444780,-1759.43,0.00016438,2]
[354225091,1740353444790,-500.0,0.00016438,2]
[354225093,1740353444800,-415.87201711,0.00016438,2]
[354225095,1740353444810,-500.0,0.00016438,2]
[354225097,1740353444820,-500.0,0.00016438,2]
[354225099,1740353444830,-797.18,0.00016438,2]
[354225101,1740353444840,-919.37,0.00016438,2]
[354225103,1740353444849,-500.0,0.00016438,2]
[354225105,1740353444859,-284.11563007,0.00016438,2]
[354225107,1740353444868,-841.02,0.00016438,2]
[354225109,1740353444878,-848.57,0.00016438,2]
[354225111,1740353444887,-679.91,0.00016438,2]
[354225113,1740353444897,-636.47,0.00016438,2]
[354225115,1740353444906,-150.33445161,0.00016438,2]
[354225117,1740353444916,-500.0,0.00016438,2]
[354225119,1740353444925,-500.0,0.00016438,2]
[354225121,1740353444935,-516.61963586,0.00016438,2]
[354225123,1740353444944,-500.0,0.00016438,2]
[354225125,1740353444953,-685.45,0.00016438,2]
[354225127,1740353444962,-501.66152604,0.00016438,2]
[354225129,1740353444974,-1150.94,0.00016438,2]
[354225131,1740353444984,-640.58,0.00016438,2]
[354225133,1740353444993,-533.66,0.00016438,2]
[354225135,1740353445003,-500.0,0.00016438,2]
[354225137,1740353445012,-500.0,0.00016438,2]
[354225139,1740353445023,-500.0,0.00016438,2]
[354225141,1740353445033,-500.0,0.00016438,2]
[354225143,1740353445042,-500.0,0.00016438,2]
[354225145,1740353445051,-500.0,0.00016438,2]
[354225147,1740353445061,-500.0,0.00016438,2]
[354225149,1740353445071,-500.0,0.00016438,2]
[354225151,1740353445081,-500.0,0.00016438,2]
[354225153,1740353445090,-500.0,0.00016438,2]
[354225155,1740353445099,-500.0,0.00016438,2]
[354225157,1740353445109,-933.73,0.00016438,2]
[354225159,1740353445119,-500.0,0.00016438,2]
[354225161,1740353445128,-2003.28,0.00016438,2]
[354225163,1740353445137,-748.45,0.00016438,2]
[354225165,1740353445147,-500.0,0.00016438,2]
[354225167,1740353445156,-500.0,0.00016438,2]
[354225169,1740353445166,-500.0,0.00016438,2]
[354225171,1740353445176,-500.0,0.00016438,2]
[354225173,1740353445185,-691.94,0.00016438,2]
[354225175,1740353445194,-500.0,0.00016438,2]
[354225177,1740353445204,-727.95,0.00016438,2]
[354225179,1740353445214,-500.0,0.00016438,2]
[354225181,1740353445224,-699.11,0.00016438,2]
[354225183,1740353445233,-179.42767409,0.00016438,2]
[354225185,1740353445243,-749.39,0.00016438,2]
[354225187,1740353445252,-1172.31,0.00016438,2]
[354225189,1740353445262,-544.31,0.00016438,2]
[354225191,1740353445273,-541.75,0.00016438,2]
[354225193,1740353445282,-794.72,0.00016438,2]
[354225195,1740353445292,-500.0,0.00016438,2]
[354225197,1740353445302,-1092.04,0.00016438,2]
[354225199,1740353445312,-1523.18,0.00016438,2]
[354225201,1740353445321,-500.0,0.00016438,2]
[354225203,1740353445331,-500.0,0.00016438,2]
[354225205,1740353445341,-1814.48,0.00016438,2]
[354225207,1740353445350,-500.0,0.00016438,2]
[354225209,1740353445360,-768.27,0.00016438,2]
[354225211,1740353445371,-909.87,0.00016438,2]
[354225213,1740353445380,-500.0,0.00016438,2]
[354225215,1740353445390,-500.0,0.00016438,2]
[354225217,1740353445404,-500.0,0.00016438,2]
[354225219,1740353445414,-945.62,0.00016438,2]
[354225221,1740353445423,-756.42,0.00016438,2]
[354225225,1740353445433,-500.0,0.00016438,2]
[354225228,1740353445443,-500.0,0.00016438,2]
[354225230,1740353445452,-500.0,0.00016438,2]
[354225234,1740353445462,-500.0,0.00016438,2]
[354225236,1740353445472,-940.07,0.00016438,2]
[354225238,1740353445481,-1635.88,0.00016438,2]
[354225239,1740353445491,-500.0,0.00016438,2]
[354225241,1740353445500,-500.0,0.00016438,2]
[354225244,1740353445510,-1091.74,0.00016438,2]
[354225246,1740353445520,-500.0,0.00016438,2]
[354225248,1740353445530,-500.0,0.00016438,2]
[354225250,1740353445539,-500.0,0.00016438,2]
[354225252,1740353445549,-500.0,0.00016438,2]
[354225254,1740353445558,-1556.84,0.00016438,2]
[354225256,1740353445567,-500.0,0.00016438,2]
[354225258,1740353445576,-500.0,0.00016438,2]
[354225260,1740353445586,-500.0,0.00016438,2]
[354225262,1740353445595,-500.0,0.00016438,2]
[354225264,1740353445604,-500.0,0.00016438,2]
[354225266,1740353445613,-500.0,0.00016438,2]
[354225268,1740353445623,-500.0,0.00016438,2]
[354225270,1740353445632,-500.0,0.00016438,2]
[354225272,1740353445641,-1812.38,0.00016438,2]
[354225274,1740353445651,-672.23,0.00016438,2]
[354225276,1740353445660,-500.0,0.00016438,2]
[354225278,1740353445669,-500.0,0.00016438,2]
[354225280,1740353445679,-761.96,0.00016438,2]
[354225282,1740353445689,-500.0,0.00016438,2]
[354225284,1740353445698,-500.0,0.00016438,2]
[354225286,1740353445707,-500.0,0.00016438,2]
[354225288,1740353445717,-1030.55,0.00016438,2]
[354225290,1740353445726,-500.0,0.00016438,2]
[354225292,1740353445736,-500.0,0.00016438,2]
[354225294,1740353445745,-500.0,0.00016438,2]
[354225296,1740353445755,-500.0,0.00016438,2]
[354225298,1740353445764,-1056.73,0.00016438,2]
[354225300,1740353445776,-500.0,0.00016438,2]
[354225302,1740353445785,-500.0,0.00016438,2]
[354225304,1740353445794,-500.0,0.00016438,2]
[354225306,1740353445803,-500.0,0.00016438,2]
[354225308,1740353445813,-500.0,0.00016438,2]
[354225310,1740353445822,-500.0,0.00016438,2]
[354225312,1740353445831,-1094.0,0.00016438,2]
[354225314,1740353445841,-500.0,0.00016438,2]
[354225316,1740353445850,-500.0,0.00016438,2]
[354225318,1740353445860,-500.0,0.00016438,2]
[354225320,1740353445869,-500.0,0.00016438,2]
[354225322,1740353445878,-702.59,0.00016438,2]
[354225324,1740353445888,-500.0,0.00016438,2]
[354225326,1740353445897,-566.73,0.00016438,2]
[354225328,1740353445907,-1810.65,0.00016438,2]
[354225330,1740353445916,-1780.58,0.00016438,2]
[354225332,1740353445925,-500.0,0.00016438,2]
[354225334,1740353445934,-500.0,0.00016438,2]
[354225336,1740353445943,-500.0,0.00016438,2]
[354225338,1740353445953,-500.0,0.00016438,2]
[354225340,1740353445962,-500.0,0.00016438,2]
[354225342,1740353445974,-2145.28,0.00016438,2]
[354225344,1740353445984,-500.0,0.00016438,2]
[354225346,1740353445994,-500.0,0.00016438,2]
[354225348,1740353446003,-500.0,0.00016438,2]
[354225350,1740353446012,-500.0,0.00016438,2]
[354225352,1740353446027,-502.77235847,0.00016438,2]
[354225385,1740353446319,-500.0,0.00016438,2]
[354225388,1740353446343,-768.28,0.00016438,2]
[354225389,1740353446353,-500.0,0.00016438,2]
[354225390,1740353446362,-500.0,0.00016438,2]
[354225391,1740353446371,-500.0,0.00016438,2]
[354225392,1740353446381,-500.0,0.00016438,2]